fUSD/lending_fUSD_20240813
["ID","MTS","AMOUNT","RATE_DAILY","PERIOD"]
[334764436,1723537856383,-500.0,0.00019077,2]
[334764438,1723537856393,-503.31563004,0.00019077,2]
[334764440,1723537856403,-502.67049187,0.00019077,2]
[334764442,1723537856413,-509.39004095,0.00019077,2]
[334764444,1723537856423,-502.94018727,0.00019077,2]
[334764446,1723537856433,-502.21511899,0.00019077,2]
[334764448,1723537856443,-502.23888996,0.00019077,2]
[334764449,1723537856453,-503.26023968,0.00019077,2]
[334764451,1723537856463,-503.245391,0.00019077,2]
[334764453,1723537856473,-502.23033093,0.00019077,2]
[334764455,1723537856483,-504.27767788,0.00019077,2]
[334764457,1723537856493,-502.67771954,0.00019077,2]
[334764459,1723537856503,-505.26151263,0.00019077,2]
[334764461,1723537856512,-404.49883925,0.00019077,2]
[334764463,1723537856522,-500.0,0.00019077,2]
[334764465,1723537856531,-505.66909944,0.00019077,2]
[334764467,1723537856541,-507.23321645,0.00019077,2]
[334764469,1723537856551,-505.37529855,0.00019077,2]
[334764470,1723537856562,-501.28390953,0.00019077,2]
[334764472,1723537856574,-500.0,0.00019077,2]
[334764475,1723537856584,-500.93526751,0.00019077,2]
[334764477,1723537856594,-507.89399484,0.00019077,2]
[334764479,1723537856604,-504.20622408,0.00019077,2]
[334764481,1723537856615,-502.44978846,0.00019077,2]
[334764483,1723537856625,-503.05714352,0.00019077,2]
[334764485,1723537856635,-496.77411102,0.00019077,2]
[334764486,1723537856644,-424.47094444,0.00019077,2]
[334764488,1723537856654,-513.98456132,0.00019077,2]
[334764491,1723537856664,-505.84398303,0.00019077,2]
[334764493,1723537856674,-501.68063598,0.00019077,2]
[334764495,1723537856684,-500.0,0.00019077,2]
[334764497,1723537856694,-504.1484441,0.00019077,2]
[334764499,1723537856704,-500.0,0.00019077,2]
[334764501,1723537856713,-504.24026746,0.00019077,2]
[334764503,1723537856724,-502.00067572,0.00019077,2]
[334764505,1723537856733,-503.77948133,0.00019077,2]
[334764507,1723537856743,-500.0,0.00019077,2]
[334764509,1723537856753,-518.19,0.00019077,2]
[334764511,1723537856763,-500.0,0.00019077,2]
[334764513,1723537856773,-501.17071327,0.00019077,2]
[334764515,1723537856783,-635.29923044,0.00019077,2]
[334764517,1723537856792,-500.0,0.00019077,2]
[334764519,1723537856803,-500.0,0.00019077,2]
[334764521,1723537856812,-501.73640417,0.00019077,2]
[334764523,1723537856825,-502.1303241,0.00019077,2]
[334764525,1723537856834,-500.0,0.00019077,2]
[334764527,1723537856844,-500.0,0.00019077,2]
[334764529,1723537856853,-500.69923023,0.00019077,2]
[334764531,1723537856863,-500.0,0.00019077,2]
[334764533,1723537856873,-500.0,0.00019077,2]
[334764535,1723537856882,-500.0,0.00019077,2]
[334764536,1723537856892,-502.60599565,0.00019077,2]
[334764539,1723537856901,-500.0,0.00019077,2]
[334764541,1723537856911,-501.39170348,0.00019077,2]
[334764543,1723537856921,-500.0,0.00019077,2]
[334764545,1723537856931,-503.94177951,0.00019077,2]
[334764547,1723537856940,-201.24909504,0.00019077,2]
[334764549,1723537856949,-500.0,0.00019077,2]
[334764551,1723537856959,-502.08857013,0.00019077,2]
[334764553,1723537856969,-502.36455024,0.00019077,2]
[334764555,1723537856979,-502.23648865,0.00019077,2]
[334764557,1723537856989,-580.94406141,0.00019077,2]
[334764559,1723537856999,-503.73795212,0.00019077,2]
[334764561,1723537857009,-615.28678076,0.00019077,2]
[334764563,1723537857020,-501.61500265,0.00019077,2]
[334764565,1723537857029,-500.40671056,0.00019077,2]
[334764567,1723537857039,-498.56607346,0.00019077,2]
[334764569,1723537857048,-506.23387231,0.00019077,2]
[334764571,1723537857058,-505.91142092,0.00019077,2]
[334764573,1723537857068,-504.28844044,0.00019077,2]
[334764575,1723537857079,-501.85234388,0.00019077,2]
[334764577,1723537857088,-454.51008277,0.00019077,2]
[334764579,1723537857098,-502.22634137,0.00019077,2]
[334764581,1723537857108,-500.0,0.00019077,2]
[334764583,1723537857118,-502.79338975,0.00019077,2]
[334764585,1723537857128,-507.27325893,0.00019077,2]
[334764588,1723537857138,-503.19694716,0.00019077,2]
[334764590,1723537857148,-621.52649293,0.00019077,2]
[334764592,1723537857158,-500.0,0.00019077,2]
[334764594,1723537857172,-502.04222915,0.00019077,2]
[334764596,1723537857183,-500.0,0.00019077,2]
[334764599,1723537857195,-502.19553551,0.00019077,2]
[334764601,1723537857206,-502.08945172,0.00019077,2]
[334764603,1723537857217,-500.0,0.00019077,2]
[334764605,1723537857227,-624.82509316,0.00019077,2]
[334764607,1723537857238,-545.87,0.00019077,2]
[334764610,1723537857250,-589.26326934,0.00019077,2]
[334764611,1723537857259,-501.7767621,0.00019077,2]
[334764614,1723537857271,-502.1091638,0.00019077,2]
[334764616,1723537857280,-503.3485175,0.00019077,2]
[334764618,1723537857290,-500.0,0.00019077,2]
[334764620,1723537857306,-570.29599655,0.00019077,2]
[334764622,1723537857315,-503.82999041,0.00019077,2]
[334764624,1723537857326,-550.17822368,0.00019077,2]
[334764626,1723537857335,-600.13956137,0.00019077,2]
[334764628,1723537857347,-500.0,0.00019077,2]
[334764630,1723537857356,-504.75253983,0.00019077,2]
[334764632,1723537857366,-502.62604609,0.00019077,2]
[334764634,1723537857378,-502.05229271,0.00019077,2]
[334764636,1723537857388,-500.90234011,0.00019077,2]
[334764638,1723537857398,-501.84184661,0.00019077,2]
[334764640,1723537857407,-501.57501462,0.00019077,2]
[334764642,1723537857417,-500.0,0.00019077,2]
[334764644,1723537857427,-502.84427006,0.00019077,2]
[334764646,1723537857438,-504.17691448,0.00019077,2]
[334764648,1723537857447,-517.92688144,0.00019077,2]
[334764650,1723537857457,-500.0,0.00019077,2]
[334764652,1723537857466,-508.67119192,0.00019077,2]
[334764654,1723537857476,-500.67372144,0.00019077,2]
[334764656,1723537857486,-500.90320094,0.00019077,2]
[334764658,1723537857496,-500.0,0.00019077,2]
[334764660,1723537857506,-516.90249968,0.00019077,2]
[334764662,1723537857516,-500.0,0.00019077,2]
[334764664,1723537857526,-502.48597345,0.00019077,2]
[334764666,1723537857535,-502.75058213,0.00019077,2]
[334764668,1723537857545,-500.0,0.00019077,2]
[334764670,1723537857555,-507.18188304,0.00019077,2]
[334764672,1723537857564,-502.34627722,0.00019077,2]
[334764674,1723537857577,-500.0,0.00019077,2]
[334764676,1723537857589,-503.11829458,0.00019077,2]
[334764678,1723537857599,-500.0,0.00019077,2]
[334764680,1723537857609,-503.66091524,0.00019077,2]
[334764682,1723537857619,-500.0,0.00019077,2]
[334764684,1723537857628,-507.17418592,0.00019077,2]
[334764686,1723537857638,-505.06278253,0.00019077,2]
[334764688,1723537857648,-500.0,0.00019077,2]
[334764690,1723537857657,-500.73357525,0.00019077,2]
[334764692,1723537857667,-500.0,0.00019077,2]
[334764694,1723537857677,-504.26414539,0.00019077,2]
[334764697,1723537857688,-500.0,0.00019077,2]
[334764698,1723537857698,-512.29927288,0.00019077,2]
[334764700,1723537857707,-500.92657841,0.00019077,2]
[334764702,1723537857718,-502.9427143,0.00019077,2]
[334764704,1723537857727,-500.0,0.00019077,2]
[334764707,1723537857738,-500.0,0.00019077,2]
[334764709,1723537857749,-500.0,0.00019077,2]
[334764711,1723537857759,-500.0,0.00019077,2]
[334764713,1723537857769,-500.0,0.00019077,2]
[334764715,1723537857779,-500.0,0.00019077,2]
[334764717,1723537857789,-500.0,0.00019077,2]
[334764719,1723537857800,-500.0,0.00019077,2]
[334764721,1723537857810,-503.99488551,0.00019077,2]
[334764723,1723537857823,-500.0,0.00019077,2]
[334764725,1723537857833,-500.0,0.00019077,2]
[334764727,1723537857843,-500.0,0.00019077,2]
[334764729,1723537857853,-500.0,0.00019077,2]
[334764731,1723537857863,-500.0,0.00019077,2]
[334764733,1723537857873,-500.0,0.00019077,2]
[334764735,1723537857883,-500.0,0.00019077,2]
[334764736,1723537857892,-500.0,0.00019077,2]
[334764737,1723537857903,-501.38252219,0.00019077,2]
[334764738,1723537857913,-500.0,0.00019077,2]
[334764739,1723537857924,-500.0,0.00019077,2]
[334764740,1723537857934,-500.0,0.00019077,2]
[334764741,1723537857944,-500.0,0.00019077,2]
[334764742,1723537857955,-500.0,0.00019077,2]
[334764743,1723537857965,-500.0,0.00019077,2]
[334764744,1723537857974,-500.0,0.00019077,2]
[334764745,1723537857984,-500.0,0.00019077,2]
[334764746,1723537857994,-500.0,0.00019077,2]
[334764747,1723537858004,-500.0,0.00019077,2]
[334764749,1723537858014,-500.0,0.00019077,2]
[334764751,1723537858024,-500.0,0.00019077,2]
[334764753,1723537858034,-500.0,0.00019077,2]
[334764755,1723537858044,-210.59467693,0.00019077,2]
[334764758,1723537858055,-500.0,0.00019077,2]
[334764760,1723537858065,-500.0,0.00019077,2]
[334764781,1723537858253,-500.0,0.00019077,2]
[334764784,1723537858287,-2368.33,0.00019077,2]
[334764786,1723537858300,-500.0,0.00019077,2]
[334764788,1723537858311,-500.0,0.00019077,2]
[334764790,1723537858320,-500.0,0.00019077,2]
[334764792,1723537858330,-500.0,0.00019077,2]
[334764794,1723537858340,-500.0,0.00019077,2]
[334764796,1723537858350,-500.0,0.00019077,2]
[334764798,1723537858359,-500.0,0.00019077,2]
[334764800,1723537858368,-500.0,0.00019077,2]
[334764802,1723537858380,-500.0,0.00019077,2]
[334764804,1723537858391,-500.0,0.00019077,2]
[334764806,1723537858400,-500.0,0.00019077,2]
[334764808,1723537858409,-376.24716891,0.00019077,2]
[334764810,1723537858419,-275.50075507,0.00019077,2]
[334764812,1723537858428,-500.0,0.00019077,2]
[334764814,1723537858437,-509.02953134,0.00019077,2]
[334764816,1723537858447,-500.0,0.00019077,2]
[334764818,1723537858458,-500.0,0.00019077,2]
[334764820,1723537858467,-575.27658828,0.00019077,2]
[334764822,1723537858477,-500.0,0.00019077,2]
[334764824,1723537858486,-500.0,0.00019077,2]
[334764826,1723537858496,-500.0,0.00019077,2]
[334764828,1723537858505,-500.0,0.00019077,2]
[334764830,1723537858514,-500.0,0.00019077,2]
[334764832,1723537858524,-500.0,0.00019077,2]
[334764834,1723537858533,-500.0,0.00019077,2]
[334764836,1723537858542,-500.0,0.00019077,2]
[334764837,1723537858552,-500.0,0.00019077,2]
[334764840,1723537858562,-500.0,0.00019077,2]
[334764842,1723537858574,-500.0,0.00019077,2]
[334764844,1723537858583,-500.0,0.00019077,2]
[334764846,1723537858592,-500.0,0.00019077,2]
[334764848,1723537858602,-500.0,0.00019077,2]
[334764850,1723537858612,-500.0,0.00019077,2]
[334764852,1723537858621,-500.0,0.00019077,2]
[334764854,1723537858631,-500.0,0.00019077,2]
[334764856,1723537858640,-500.0,0.00019077,2]
[334764858,1723537858651,-500.0,0.00019077,2]
[334764860,1723537858660,-500.0,0.00019077,2]
[334764862,1723537858670,-500.0,0.00019077,2]
[334764864,1723537858680,-500.0,0.00019077,2]
[334764866,1723537858691,-500.0,0.00019077,2]
[334764868,1723537858701,-500.0,0.00019077,2]
[334764870,1723537858711,-500.0,0.00019077,2]
[334764872,1723537858720,-500.0,0.00019077,2]
[334764874,1723537858731,-500.0,0.00019077,2]
[334764876,1723537858740,-500.0,0.00019077,2]
[334764878,1723537858750,-500.0,0.00019077,2]
[334764880,1723537858759,-500.0,0.00019077,2]
[334764882,1723537858770,-500.95,0.00019077,2]
[334764884,1723537858780,-500.0,0.00019077,2]
[334764886,1723537858791,-508.16133803,0.00019077,2]
[334764888,1723537858801,-500.0,0.00019077,2]
[334764890,1723537858812,-500.0,0.00019077,2]
[334764892,1723537858822,-500.0,0.00019077,2]
[334764894,1723537858832,-502.72454584,0.00019077,2]
[334764896,1723537858843,-500.0,0.00019077,2]
[334764898,1723537858853,-500.0,0.00019077,2]
[334764900,1723537858863,-500.0,0.00019077,2]
[334764902,1723537858873,-502.27706972,0.00019077,2]
[334764904,1723537858882,-500.0,0.00019077,2]
[334764906,1723537858892,-525.50446387,0.00019077,2]
[334764908,1723537858902,-500.0,0.00019077,2]
[334764910,1723537858912,-500.0,0.00019077,2]
[334764912,1723537858921,-506.42120688,0.00019077,2]
[334764914,1723537858931,-501.57165908,0.00019077,2]
[334764916,1723537858941,-502.47653519,0.00019077,2]
[334764917,1723537858951,-500.0,0.00019077,2]
[334764919,1723537858961,-500.0,0.00019077,2]
[334764922,1723537858971,-502.78059944,0.00019077,2]
[334764924,1723537858981,-501.74854973,0.00019077,2]
[334764926,1723537858990,-505.96465084,0.00019077,2]
[334764928,1723537859000,-500.0,0.00019077,2]
[334764930,1723537859011,-501.38846497,0.00019077,2]
[334764932,1723537859021,-503.58458378,0.00019077,2]
[334764934,1723537859030,-500.0,0.00019077,2]
[334764936,1723537859040,-506.48738122,0.00019077,2]
[334764937,1723537859049,-503.70903334,0.00019077,2]
[334764939,1723537859059,-503.13573476,0.00019077,2]
[334764941,1723537859069,-502.99093328,0.00019077,2]
[334764944,1723537859086,-511.98039112,0.00019077,2]
[334764945,1723537859095,-500.0,0.00019077,2]
[334764948,1723537859105,-500.0,0.00019077,2]
[334764949,1723537859114,-472.66185176,0.00019077,2]
[334764951,1723537859122,-500.0,0.00019077,2]
[334764953,1723537859132,-493.11838252,0.00019077,2]
[334764955,1723537859141,-501.80970365,0.00019077,2]
[334764957,1723537859151,-500.0,0.00019077,2]
[334764959,1723537859161,-507.41546857,0.00019077,2]
[334764961,1723537859170,-500.0,0.00019077,2]
[334764963,1723537859179,-500.0,0.00019077,2]
[334764965,1723537859189,-504.02832074,0.00019077,2]
[334764967,1723537859200,-501.80459209,0.00019077,2]
[334764969,1723537859210,-200.01567865,0.00019077,2]
[334764971,1723537859220,-507.58798222,0.00019077,2]
[334764973,1723537859229,-500.0,0.00019077,2]
[334764975,1723537859238,-548.97488171,0.00019077,2]
[334764977,1723537859247,-500.0,0.00019077,2]
[334764979,1723537859257,-500.0,0.00019077,2]
[334764981,1723537859268,-503.22061224,0.00019077,2]
[334764983,1723537859278,-500.0,0.00019077,2]
[334764985,1723537859288,-238.14273217,0.00019077,2]
[334764987,1723537859302,-629.11455614,0.00019077,2]
[334764989,1723537859311,-500.0,0.00019077,2]
[334764991,1723537859322,-500.0,0.00019077,2]
[334764993,1723537859333,-503.78616041,0.00019077,2]
[334764995,1723537859343,-500.0,0.00019077,2]
[334764997,1723537859353,-522.87155816,0.00019077,2]
[334764999,1723537859363,-520.23213767,0.00019077,2]
[334765001,1723537859374,-503.21430992,0.00019077,2]
[334765003,1723537859383,-500.0,0.00019077,2]
[334765005,1723537859392,-503.47546615,0.00019077,2]
[334765007,1723537859402,-500.0,0.00019077,2]
[334765009,1723537859412,-500.0,0.00019077,2]
[334765010,1723537859422,-506.72275282,0.00019077,2]
[334765012,1723537859431,-500.0,0.00019077,2]
[334765014,1723537859441,-500.0,0.00019077,2]
[334765016,1723537859451,-509.99313208,0.00019077,2]
[334765018,1723537859460,-488.48229436,0.00019077,2]
[334765020,1723537859470,-500.0,0.00019077,2]
[334765022,1723537859479,-510.6671857,0.00019077,2]
[334765024,1723537859489,-506.66953095,0.00019077,2]
[334765026,1723537859499,-505.93969567,0.00019077,2]
[334765028,1723537859509,-500.0,0.00019077,2]
[334765030,1723537859519,-500.0,0.00019077,2]
[334765032,1723537859529,-510.23696303,0.00019077,2]
[334765034,1723537859538,-516.07850051,0.00019077,2]
[334765036,1723537859548,-512.72985275,0.00019077,2]
[334765038,1723537859558,-501.82051142,0.00019077,2]
[334765040,1723537859567,-500.0,0.00019077,2]
[334765042,1723537859581,-500.0,0.00019077,2]
[334765044,1723537859590,-502.98599659,0.00019077,2]
[334765046,1723537859602,-501.70394378,0.00019077,2]
[334765048,1723537859612,-500.0,0.00019077,2]
[334765050,1723537859622,-500.0,0.00019077,2]
[334765052,1723537859631,-500.0,0.00019077,2]
[334765054,1723537859641,-502.05315546,0.00019077,2]
[334765056,1723537859651,-505.33389469,0.00019077,2]
[334765058,1723537859661,-501.89893437,0.00019077,2]
[334765060,1723537859671,-1000.0,0.00019077,2]
[334765062,1723537859680,-511.18490734,0.00019077,2]
[334765064,1723537859690,-500.0,0.00019077,2]
[334765066,1723537859699,-500.0,0.00019077,2]
[334765068,1723537859709,-503.5917092,0.00019077,2]
[334765070,1723537859718,-1343.58,0.00019077,2]
[334765072,1723537859727,-504.21718188,0.00019077,2]
[334765074,1723537859737,-500.0,0.00019077,2]
[334765076,1723537859747,-500.0,0.00019077,2]
[334765078,1723537859756,-510.9202773,0.00019077,2]
[334765080,1723537859766,-500.0,0.00019077,2]
[334765082,1723537859776,-521.70752976,0.00019077,2]
[334765084,1723537859786,-502.11075761,0.00019077,2]
[334765086,1723537859797,-500.0,0.00019077,2]
[334765088,1723537859806,-517.38001031,0.00019077,2]
[334765090,1723537859816,-400.0,0.00019077,2]
[334765092,1723537859828,-509.71580202,0.00019077,2]
[334765094,1723537859837,-511.99092808,0.00019077,2]
[334765096,1723537859847,-500.0,0.00019077,2]
[334765098,1723537859856,-506.63269267,0.00019077,2]
[334765101,1723537859866,-510.88646622,0.00019077,2]
[334765103,1723537859877,-567.16195839,0.00019077,2]
[334765105,1723537859887,-352.80778631,0.00019077,2]
[334765107,1723537859896,-501.71373996,0.00019077,2]
[334765109,1723537859906,-500.0,0.00019077,2]
[334765111,1723537859915,-502.3332859,0.00019077,2]
[334765113,1723537859925,-503.97942325,0.00019077,2]
[334765115,1723537859934,-500.0,0.00019077,2]
[334765117,1723537859944,-509.48124754,0.00019077,2]
[334765119,1723537859953,-514.06917739,0.00019077,2]
[334765121,1723537859963,-505.32878722,0.00019077,2]
[334765123,1723537859972,-501.45198599,0.00019077,2]
[334765125,1723537859982,-500.0,0.00019077,2]
[334765127,1723537859992,-521.09367749,0.00019077,2]
[334765129,1723537860002,-518.18460425,0.00019077,2]
[334765131,1723537860011,-503.31556494,0.00019077,2]
[334765133,1723537860021,-500.0,0.00019077,2]
[334765135,1723537860033,-493.56033058,0.00019077,2]
[334765137,1723537860043,-501.76523179,0.00019077,2]
[334765139,1723537860052,-504.90044489,0.00019077,2]
[334765141,1723537860062,-510.01396454,0.00019077,2]
[334765143,1723537860075,-503.33430789,0.00019077,2]
[334765145,1723537860085,-500.0,0.00019077,2]
[334765147,1723537860094,-504.34827774,0.00019077,2]
[334765149,1723537860103,-505.85708582,0.00019077,2]
[334765151,1723537860113,-509.00271035,0.00019077,2]
[334765153,1723537860123,-511.84209606,0.00019077,2]
[334765155,1723537860133,-502.08473138,0.00019077,2]
[334765157,1723537860143,-500.0,0.00019077,2]
[334765159,1723537860153,-504.02522613,0.00019077,2]
[334765161,1723537860164,-501.5547693,0.00019077,2]
[334765163,1723537860174,-502.51434709,0.00019077,2]
[334765165,1723537860184,-510.76886618,0.00019077,2]
[334765167,1723537860195,-500.0,0.00019077,2]
[334765169,1723537860205,-505.87907356,0.00019077,2]
[334765171,1723537860215,-506.63831548,0.00019077,2]
[334765173,1723537860226,-503.74222442,0.00019077,2]
[334765175,1723537860236,-502.52366886,0.00019077,2]
[334765176,1723537860246,-504.44191753,0.00019077,2]
[334765177,1723537860257,-504.97938749,0.00019077,2]
[334765178,1723537860266,-501.15636966,0.00019077,2]
[334765179,1723537860277,-504.67776103,0.00019077,2]
[334765180,1723537860288,-503.27566076,0.00019077,2]
[334765181,1723537860301,-503.1776857,0.00019077,2]
[334765182,1723537860311,-507.2457851,0.00019077,2]
[334765183,1723537860322,-522.14265729,0.00019077,2]
[334765184,1723537860331,-501.66826375,0.00019077,2]
[334765185,1723537860341,-500.6863864,0.00019077,2]
[334765186,1723537860351,-508.97215129,0.00019077,2]
[334765187,1723537860361,-508.78156129,0.00019077,2]
[334765188,1723537860371,-504.76450102,0.00019077,2]
[334765190,1723537860384,-506.28661135,0.00019077,2]
[334765192,1723537860394,-504.91333915,0.00019077,2]
[334765194,1723537860405,-500.0,0.00019077,2]
[334765196,1723537860416,-502.60384185,0.00019077,2]
[334765198,1723537860425,-506.22892042,0.00019077,2]
[334765200,1723537860436,-239.73353454,0.00019077,2]
[334765203,1723537860450,-503.19055069,0.00019077,2]
[334765205,1723537860461,-508.74871391,0.00019077,2]
[334765207,1723537860471,-511.86784708,0.00019077,2]
[334765209,1723537860482,-504.10834457,0.00019077,2]
[334765211,1723537860492,-502.12654393,0.00019077,2]
[334765213,1723537860502,-505.76895042,0.00019077,2]
[334765215,1723537860512,-474.87066961,0.00019077,2]
[334765217,1723537860521,-501.96409376,0.00019077,2]
[334765219,1723537860531,-505.75534231,0.00019077,2]
[334765221,1723537860541,-503.56990166,0.00019077,2]
[334765223,1723537860551,-504.49325965,0.00019077,2]
[334765225,1723537860561,-507.62962846,0.00019077,2]
[334765227,1723537860573,-503.27445047,0.00019077,2]
[334765229,1723537860583,-508.54475064,0.00019077,2]
[334765231,1723537860593,-504.14251532,0.00019077,2]
[334765233,1723537860602,-505.18795859,0.00019077,2]
[334765235,1723537860611,-513.16342482,0.00019077,2]
[334765237,1723537860621,-500.0,0.00019077,2]
[334765239,1723537860630,-502.91941404,0.00019077,2]
[334765241,1723537860639,-500.0,0.00019077,2]
[334765243,1723537860649,-502.73078745,0.00019077,2]
[334765245,1723537860658,-503.50687532,0.00019077,2]
[334765254,1723537860741,-210.58321764,0.00019077,2]
[334765256,1723537860752,-286.72885441,0.00019077,2]
[334765258,1723537860764,-507.75808038,0.00019077,2]
[334765260,1723537860773,-504.01359301,0.00019077,2]
[334765262,1723537860783,-502.24446954,0.00019077,2]
[334765264,1723537860793,-508.23330859,0.00019077,2]
[334765266,1723537860803,-503.37097859,0.00019077,2]
[334765268,1723537860812,-509.46220051,0.00019077,2]
[334765270,1723537860824,-508.5196522,0.00019077,2]
[334765272,1723537860833,-503.33164257,0.00019077,2]
[334765274,1723537860842,-505.5,0.00019077,2]
[334765276,1723537860852,-503.59573915,0.00019077,2]
[334765278,1723537860861,-502.60150124,0.00019077,2]
[334765280,1723537860870,-504.18658376,0.00019077,2]
[334765282,1723537860880,-649.02015259,0.00019077,2]
[334765284,1723537860890,-504.10356631,0.00019077,2]
[334765286,1723537860901,-505.50040255,0.00019077,2]
[334765289,1723537860912,-216.3839228,0.00019077,2]
[334765290,1723537860921,-504.51785326,0.00019077,2]
[334765292,1723537860931,-505.29880194,0.00019077,2]
[334765294,1723537860941,-504.64528792,0.00019077,2]
[334765297,1723537860951,-503.55372569,0.00019077,2]
[334765298,1723537860960,-501.69357614,0.00019077,2]
[334765300,1723537860969,-502.46830124,0.00019077,2]
[334765302,1723537860979,-513.31861841,0.00019077,2]
[334765304,1723537860988,-501.51934552,0.00019077,2]
[334765306,1723537860998,-154.10589818,0.00019077,2]
[334765308,1723537861008,-311.86667788,0.00019077,2]
[334765310,1723537861018,-500.0,0.00019077,2]
[334765312,1723537861027,-501.83847914,0.00019077,2]
[334765314,1723537861037,-502.46423976,0.00019077,2]
[334765317,1723537861047,-506.9194662,0.00019077,2]
[334765319,1723537861057,-536.77843723,0.00019077,2]
[334765321,1723537861067,-507.55373359,0.00019077,2]
[334765323,1723537861080,-500.0,0.00019077,2]
[334765325,1723537861089,-505.74735381,0.00019077,2]
[334765327,1723537861098,-501.64899923,0.00019077,2]
[334765329,1723537861107,-523.05136327,0.00019077,2]
[334765331,1723537861117,-501.99760776,0.00019077,2]
[334765332,1723537861126,-505.39236569,0.00019077,2]
[334765335,1723537861136,-502.82453221,0.00019077,2]
[334765336,1723537861146,-598.20140921,0.00019077,2]
[334765338,1723537861155,-504.98297416,0.00019077,2]
[334765340,1723537861164,-499.6781002,0.00019077,2]
[334765342,1723537861175,-572.04,0.00019077,2]
[334765344,1723537861185,-536.05038176,0.00019077,2]
[334765346,1723537861196,-508.13537634,0.00019077,2]
[334765348,1723537861206,-504.797512,0.00019077,2]
[334765350,1723537861216,-508.61170275,0.00019077,2]
[334765352,1723537861226,-489.71367098,0.00019077,2]
[334765354,1723537861236,-287.94101785,0.00019077,2]
[334765356,1723537861246,-501.76374511,0.00019077,2]
[334765358,1723537861256,-502.42622289,0.00019077,2]
[334765360,1723537861265,-500.0,0.00019077,2]
[334765362,1723537861275,-503.34631409,0.00019077,2]
[334765364,1723537861284,-503.05855013,0.00019077,2]
[334765367,1723537861297,-500.0,0.00019077,2]
[334765368,1723537861308,-572.47502726,0.00019077,2]
[334765371,1723537861318,-501.75442445,0.00019077,2]
[334765373,1723537861336,-529.74361277,0.00019077,2]
[334765375,1723537861345,-502.68562397,0.00019077,2]
[334765377,1723537861354,-504.80638126,0.00019077,2]
[334765378,1723537861364,-502.64533564,0.00019077,2]
[334765380,1723537861373,-503.47300959,0.00019077,2]
[334765382,1723537861384,-619.52603394,0.00019077,2]
[334765384,1723537861394,-502.51423957,0.00019077,2]
[334765386,1723537861403,-505.72061042,0.00019077,2]
[334765389,1723537861412,-508.18361604,0.00019077,2]
[334765390,1723537861422,-503.29116605,0.00019077,2]
[334765392,1723537861432,-504.2479665,0.00019077,2]
[334765394,1723537861442,-512.15791714,0.00019077,2]
[334765396,1723537861451,-502.01336722,0.00019077,2]
[334765398,1723537861461,-506.73939996,0.00019077,2]
[334765400,1723537861470,-507.07894867,0.00019077,2]
[334765402,1723537861479,-546.4955483,0.00019077,2]
[334765404,1723537861489,-506.17856415,0.00019077,2]
[334765406,1723537861498,-507.06119531,0.00019077,2]
[334765408,1723537861507,-506.92005088,0.00019077,2]
[334765410,1723537861516,-505.5700183,0.00019077,2]
[334765412,1723537861525,-500.48661387,0.00019077,2]
[334765414,1723537861534,-503.96484067,0.00019077,2]
[334765416,1723537861543,-502.08757174,0.00019077,2]
[334765418,1723537861552,-504.73471148,0.00019077,2]
[334765420,1723537861561,-380.64843166,0.00019077,2]
[334765422,1723537861571,-504.59480787,0.00019077,2]
[334765423,1723537861580,-503.42591787,0.00019077,2]
[334765425,1723537861589,-509.71503569,0.00019077,2]
[334765427,1723537861599,-509.20083051,0.00019077,2]
[334765429,1723537861608,-502.15398854,0.00019077,2]
[334765431,1723537861617,-506.97319879,0.00019077,2]
[334765433,1723537861627,-513.04733225,0.00019077,2]
[334765435,1723537861636,-502.59006158,0.00019077,2]
[334765437,1723537861645,-504.49537339,0.00019077,2]
[334765439,1723537861654,-502.27425423,0.00019077,2]